Cogmind - Beta 15 @@@ ROGUE MODE // 2025.06.20 @ 21:44:22 Player: LightKnight Result: Escaped! Performance ------------- Evolutions (9) 4500 Regions Visited (25) 5000 Robots Destroyed (386) 1930 Value Destroyed (18838) 18838 Prototype IDs (85) 1700 Alien Tech Used (3) 600 Bonus (15677) 15677 TOTAL SCORE: 48245 Bonus ------- High Alert Combat Kills 2658 Follower Combat Kills 2664 Network Hubs Disabled 200 Registered with UFD 300 Met Optimus in HQ 500 Met Zhirov 300 Built Enhanced Grunts 300 Met R17 at Cetus 500 Met R17 at Research 2000 Acquired SGEMP 2000 Delivered SGEMP 2000 Win 3000 Friendly Fire -745 Cogmind --------- Core Integrity 1494/1600 Matter 273/300 Energy 59/940 System Corruption 10% Temperature Warm (191) Movement Walking (114) Location To Epsilon Eridani Parts ------- > --- POWER (2) -------- Quantum Reactor Light Quantum Reactor > --- PROPULSION (7) --- Thunder Leg Advanced Myomer Leg Biometal Leg High-density Centrium Leg Myomer Exoskeleton > --- UTILITY (13) ----- Advanced Power Amplifier Huge Storage Unit Advanced Energy Well Advanced Sensor Array Advanced Signal Interpreter Quantum Capacitor (fused) Layered Heavy Armor Plating Graphene Brace (fused) Advanced System Shield > --- WEAPON (3) ------- Null Cannon Improved Potential Cannon > --- INVENTORY (25) --- Reinforced Fission Core Particle Reactor Micro Antimatter Reactor Cooled Antimatter Reactor Flexi-carbon Leg Thunder Leg Thunder Leg Thunder Leg Advanced Myomer Leg Advanced Myomer Leg Advanced Myomer Leg Biometal Leg Biometal Leg Advanced Energy Well (0) Layered Heavy Armor Plating Centrium Light Armor Plating Centrium Medium Armor Plating Advanced Hardlight Generator Enhanced Nova Cannon Enhanced Nova Cannon Improved Potential Cannon Compact Linear Accelerator Z-bomb Delivery System Peak State ------------ > --- POWER ------------ Quantum Reactor Light Quantum Reactor > --- PROPULSION ------- Thunder Leg Advanced Myomer Leg Biometal Leg High-density Centrium Leg Myomer Exoskeleton > --- UTILITY ---------- Advanced Power Amplifier Coolant Network Huge Storage Unit Advanced Energy Well Advanced Sensor Array Advanced Signal Interpreter Quantum Capacitor Centrium Light Armor Plating Centrium Medium Armor Plating Graphene Brace Advanced System Shield > --- WEAPON ----------- Null Cannon Improved Potential Cannon > --- INVENTORY -------- Reinforced Fission Core Particle Reactor Micro Antimatter Reactor Cooled Antimatter Reactor Flexi-carbon Leg Thunder Leg Thunder Leg Thunder Leg Advanced Myomer Leg Advanced Myomer Leg Advanced Myomer Leg Biometal Leg Biometal Leg Advanced Energy Well Advanced Hardlight Generator Enhanced Nova Cannon Enhanced Nova Cannon Improved Potential Cannon Compact Linear Accelerator Z-bomb Delivery System [Rating: 234] Favorites ----------- Power Quantum Reactor Engine Cooled Ion Engine Power Core Neutrino Core Reactor Quantum Reactor Propulsion Light Treads Treads Light Treads Leg Advanced Myomer Leg Utility Quantum Capacitor Device Quantum Capacitor Storage Large Storage Unit Processor Advanced Targeting Computer Hackware Advanced System Shield Protection Medium Armor Plating Weapon Minigun Energy Gun Heavy EM Shotgun Energy Cannon Null Cannon Ballistic Gun Minigun Ballistic Cannon Light Cannon Launcher Micro-nuke Launcher Special Weapon Junk Cannon Impact Weapon Heavy Flail Slashing Weapon Companion Sword Special Melee Weapon Datajack Build | -11 -10 -10 -9 -9 -9 -8 -8 -8 -8 -8 -6 -5 -5 -5 -5 -5 -4 -4 -4 -4 -3 -3 -2 -2 -1 ------- Run | Yrd Mat Min Mat Min Exi Min Mat Sto Rec Scr Fac Fac Ext Cet Arc Hub Fac Upp Upp Zhi Pro Res Res Tes Acc Slots Evolved 18 | . . . 2 . . . 2 . . . 4 2 . . . . 2 . . . . 2 2 . 2 Power 1 | . . . . . . . . . . . 1 . . . . . . . . . . . . . . Propulsion 5 | . . . 1 . . . . . . . 1 . . . . . . . . . . 1 1 . 1 Utility 11 | . . . . . . . 2 . . . 2 2 . . . . 2 . . . . 1 1 . 1 Weapon 1 | . . . 1 . . . . . . . . . . . . . . . . . . . . . . Parts Attached 247 | . 7 4 25 5 1 7 13 9 1 13 10 10 19 16 . 8 10 8 2 7 . 21 22 26 3 Power 24 | . 1 1 1 . . 1 1 1 . . 2 . 2 3 . 1 . 1 . 1 . 3 3 2 . Engine 7 | . 1 1 1 . . 1 1 1 . . 1 . . . . . . . . . . . . . . Core 5 | . . . . . . . . . . . 1 . 2 . . . . 1 . . . 1 . . . Reactor 12 | . . . . . . . . . . . . . . 3 . 1 . . . 1 . 2 3 2 . Propulsion 68 | . 2 1 7 1 . 3 3 4 1 3 1 4 4 1 . 5 2 1 . 4 . 5 9 6 1 Treads 56 | . 2 1 7 1 . 3 3 4 1 3 1 4 4 1 . 5 2 1 . . . 3 9 1 . Leg 12 | . . . . . . . . . . . . . . . . . . . . 4 . 2 . 5 1 Wheel . | . . . . . . . . . . . . . . . . . . . . . . . . . . Hover . | . . . . . . . . . . . . . . . . . . . . . . . . . . Flight . | . . . . . . . . . . . . . . . . . . . . . . . . . . Utility 92 | . 2 1 6 3 . . 5 1 . 4 6 5 7 8 . . 6 5 1 2 . 11 5 12 2 Device 41 | . . . 2 2 . . 1 1 . 1 3 3 5 4 . . 4 4 . . . 7 . 4 . Storage 9 | . 1 . 1 . . . . . . 2 . . . 1 . . . . . 1 . 1 . 2 . Processor 14 | . . 1 . . . . 2 . . 1 3 . . . . . . . 1 . . 2 1 2 1 Hackware 5 | . . . . . . . . . . . . 1 . . . . 1 1 . . . 1 1 . . Protection 23 | . 1 . 3 1 . . 2 . . . . 1 2 3 . . 1 . . 1 . . 3 4 1 Artifact . | . . . . . . . . . . . . . . . . . . . . . . . . . . Weapon 63 | . 2 1 11 1 1 3 4 3 . 6 1 1 6 4 . 2 2 1 1 . . 2 5 6 . Energy Gun 14 | . . . 3 . . . 1 1 . 2 . . 2 1 . . . 1 1 . . . 2 . . Energy Cannon 22 | . . . 2 . . . . 2 . 2 1 . 2 2 . 1 2 . . . . 2 2 4 . Ballistic Gun 13 | . . 1 5 1 . 3 1 . . . . . 1 . . 1 . . . . . . . . . Ballistic Cannon 6 | . 2 . 1 . . . 1 . . . . . . . . . . . . . . . . 2 . Launcher 2 | . . . . . . . . . . . . 1 . . . . . . . . . . 1 . . Special Weapon 2 | . . . . . . . . . . . . . 1 1 . . . . . . . . . . . Impact Weapon 1 | . . . . . . . 1 . . . . . . . . . . . . . . . . . . Slashing Weapon 1 | . . . . . . . . . . 1 . . . . . . . . . . . . . . . Piercing Weapon . | . . . . . . . . . . . . . . . . . . . . . . . . . . Special Melee Weapon 2 | . . . . . 1 . . . . 1 . . . . . . . . . . . . . . . Unidentified Prototypes 39 | . . . 2 . . . . 2 . 1 . . 2 6 . 1 . 1 . 4 . 4 4 12 . Corrupted Parts 2 | . . . . . . . . . . . . . . . . 2 . . . . . . . . . System Corruption 7 | . . . . . . . . . . . . . . . . 7 . . . . . . . . . Parts Lost 88 | . . 3 2 1 . 6 2 . . . 3 7 5 3 . 2 13 5 . . . 1 12 22 1 Power 7 | . . 1 1 . . 1 . . . . . . . . . . 2 . . . . . . 2 . Propulsion 30 | . . 1 1 1 . 3 . . . . . 4 2 1 . 1 2 1 . . . . 5 8 . Utility 32 | . . . . . . . 2 . . . 2 2 1 2 . 1 5 3 . . . . 4 9 1 Weapon 19 | . . 1 . . . 2 . . . . 1 1 2 . . . 4 1 . . . 1 3 3 . Highest Loss Streak 20 | . . 2 1 1 . 3 1 . . . 2 4 2 2 . 1 5 4 . . . 1 5 20 1 To Critical Strikes 1 | . . . . . . . . . . . . . . 1 . . . . . . . . . . . Average Backups 16 | . 9 9 14 14 14 13 13 14 15 16 16 15 15 15 16 15 14 13 15 17 15 19 20 17 22 Power 1 | . 1 . . 1 2 2 3 2 3 2 . 1 1 1 1 1 . . . . 1 1 1 3 4 Propulsion 5 | . 4 3 4 4 4 2 4 4 5 5 5 5 4 1 3 2 3 5 6 6 5 7 7 6 9 Utility 4 | . . 1 3 4 4 6 4 2 2 2 3 3 5 6 5 5 4 2 3 3 5 6 7 5 4 Weapon 4 | . 2 3 4 3 3 2 2 4 5 4 5 4 3 6 7 7 6 5 5 7 3 3 3 3 5 Tool/Special . | . . . . . . . . . . . . . . . . . . . . . . . . . . Unused Backups 46 | . 5 . 6 1 . . 1 1 . 6 1 2 2 4 . . . . . 4 . 3 1 . 9 Power 6 | . 1 . . . . . . 1 . 3 . . . . . . . . . . . . . . 1 Propulsion 12 | . 4 . . . . . . . . . . . . . . . . . . 2 . 1 . . 5 Utility 9 | . . . 2 . . . . . . 2 1 . 1 1 . . . . . . . 1 . . 1 Weapon 18 | . . . 3 1 . . 1 . . 1 . 2 1 3 . . . . . 2 . 1 1 . 2 Tool/Special 1 | . . . 1 . . . . . . . . . . . . . . . . . . . . . . Average Slot Usage (%) 89 | . 93 99 99 100 100 99 99 100 100 97 99 97 89 87 88 88 79 74 83 75 94 81 82 78 76 Engine 5 | . 14 14 10 11 11 11 9 9 9 9 8 11 5 . . . . . . . . . . . . Core 1 | . . . . . . . . . . . 3 . 5 3 . . . 3 5 5 5 4 1 1 . Reactor 3 | . . . . . . . . . . . . . . 6 11 11 9 5 5 5 5 4 6 6 8 Treads 18 | . 20 27 32 33 33 33 27 27 27 27 25 23 16 11 11 13 9 13 15 9 . 15 23 12 . Leg 4 | . 7 . . . . . . . . . . . . . . . . . . 7 21 4 . 10 20 Device 12 | . . . 3 . . . 9 9 9 8 12 14 11 22 27 26 24 25 31 28 26 20 17 18 20 Storage 8 | . 14 14 11 11 11 11 9 9 9 9 6 5 5 5 5 5 6 10 10 10 10 4 4 5 7 Processor 5 | . . 10 . . . . 8 9 9 9 19 17 13 8 5 5 5 1 4 5 5 6 1 3 3 Hackware 1 | . . . . . . . . . . . . 2 5 . . . 2 2 . . . 3 7 5 4 Protection 6 | . 8 4 6 10 11 11 9 9 9 9 . 2 8 6 6 5 6 2 . 2 5 4 6 5 4 Energy Gun 4 | . . . 7 . . . 6 3 9 12 14 8 4 2 . . . 2 2 . 5 3 3 . . Energy Cannon 5 | . . . 1 . . . . 9 15 7 4 7 3 13 17 16 9 5 7 . 10 5 6 4 8 Ballistic Gun 6 | . 12 4 23 33 28 32 20 7 . . . . 1 . . . 3 . . . . . . . . Ballistic Cannon 2 | . 15 23 . . . . . 7 . . . . . . . . . . . . . . . 2 . Peak Build Rating 234 | . 8 8 20 21 21 21 29 32 31 42 61 75 81 123 119 120 144 128 115 131 131 150 166 226 234 Average Rating 93 | . 7 7 18 19 20 20 26 30 30 31 58 67 74 111 116 111 132 104 109 103 131 138 157 182 231 On Entrance 72 | 6 6 8 7 20 20 21 21 28 31 28 41 51 55 81 119 116 119 105 104 115 131 131 137 158 223 Naked Turns . | . . . . . . . . . . . . . . . . . . . . . . . . . . Heaviest Build 203 | 13 32 32 44 44 44 44 49 51 48 73 85 89 106 128 128 122 139 117 111 109 109 156 198 203 185 Greatest Support 223 | 20 40 40 60 60 60 60 60 60 60 72 92 95 116 150 150 160 160 150 116 116 115 153 189 223 213 Greatest Overweight (x) 2 | . 1 1 . . . . . . . 1 . 1 1 1 . 1 . . . 2 . 1 1 2 . Average Overweight (x) . | . . . . . . . . . . . . . . . . . . . . . . . . . . Largest Inventory Capacity 25 | . 15 15 15 15 15 15 15 15 15 20 20 20 20 20 20 20 20 20 20 20 20 25 25 25 25 Average Capacity 19 | . 13 15 15 15 15 15 15 15 15 18 20 20 20 20 20 20 20 20 20 20 20 24 25 25 25 Most Carried 25 | . 15 11 15 15 15 15 15 15 15 20 20 20 20 20 20 20 20 18 17 20 17 25 25 25 25 Average Carried 18 | . 10 9 14 14 14 13 13 14 15 17 18 18 18 19 19 19 17 14 16 19 17 22 22 20 24 Final Capacity 25 | 8 15 15 15 15 15 15 15 15 15 20 20 20 20 20 20 20 20 20 20 20 20 25 25 25 25 Final Carried 25 | 6 11 8 15 13 15 14 14 15 15 20 18 20 20 20 20 20 15 17 16 17 17 25 24 25 25 Class Distribution -------------------- 16% | Mutant 16% | Scavenger-Skirmisher 14% | Scavenger-Tank 12% | Tank 10% | Scavenger-Mutant 7% | Scavenger-Gunner 7% | Gunner Dominant Class ---------------- Mutant | -10/Materials Mutant | -10/Mines Tank | -9/Materials Tank | -9/Mines Tank | -9/Exiles Tank | -8/Mines Gunner | -8/Materials Commander-Gunner | -8/Storage Scavenger-Gunner | -8/Recycling Mutant | -8/Scraptown Derelict-Skirmisher | -6/Factory Skirmisher | -5/Factory Scavenger-Tank | -5/Extension Scavenger-Tank | -5/Cetus Scavenger-Tank | -5/Archives Scavenger-Tank | -5/Hub_04(d) Scavenger-Tank | -4/Factory Scavenger-Mutant | -4/Upper Caves Scavenger-Gunner | -4/Upper Caves Scavenger-Mutant | -4/Zhirov Scavenger-Gunner | -3/Proximity Caves Scavenger-Mutant | -3/Research Scavenger-Tank | -2/Research Scavenger-Mutant | -2/Testing Scavenger-Skirmisher | -1/Access Resources | -11 -10 -10 -9 -9 -9 -8 -8 -8 -8 -8 -6 -5 -5 -5 -5 -5 -4 -4 -4 -4 -3 -3 -2 -2 -1 ----------- Run | Yrd Mat Min Mat Min Exi Min Mat Sto Rec Scr Fac Fac Ext Cet Arc Hub Fac Upp Upp Zhi Pro Res Res Tes Acc Matter Collected 7031 | 200 409 207 799 633 20 317 570 415 61 70 206 140 380 210 10 181 350 188 124 100 33 273 416 599 120 Remotely 239 | . . . . 239 . . . . . . . . . . . . . . . . . . . . . Salvage Created 18901 | . 628 195 1638 458 . 553 1269 883 59 245 305 586 1431 162 180 1126 1477 598 231 338 33 462 2710 1538 1796 Parts 762 | . 44 8 99 21 . 32 85 44 2 3 13 31 37 4 2 33 40 14 6 . 1 17 101 62 63 Haulers Intercepted 19 | . 2 . 6 . . . 2 5 . . . . . . . 2 . . . . . 1 1 . . Recyclers Shooed 2 | . . . . . . . . 1 . . . . 1 . . . . . . . . . . . . Parts Field Recycled . | . . . . . . . . . . . . . . . . . . . . . . . . . . Retrieved Matter . | . . . . . . . . . . . . . . . . . . . . . . . . . . Parts Self-Destructed 13 | . . . . . . . . . . 3 . . . . . . . 2 5 . 3 . . . . Prevented . | . . . . . . . . . . . . . . . . . . . . . . . . . . Kills | -11 -10 -10 -9 -9 -9 -8 -8 -8 -8 -8 -6 -5 -5 -5 -5 -5 -4 -4 -4 -4 -3 -3 -2 -2 -1 ------- Run | Yrd Mat Min Mat Min Exi Min Mat Sto Rec Scr Fac Fac Ext Cet Arc Hub Fac Upp Upp Zhi Pro Res Res Tes Acc Combat Hostiles Destroyed 339 | . 17 12 28 27 . 17 28 14 1 . 5 12 21 1 2 20 24 8 3 . 1 5 35 20 38 Melee 1 | . . . . . . . . . . . . . . . . . . . . . . . . . 1 Guns 124 | . 9 2 23 27 . 14 28 8 . . 3 1 6 . . . 3 . . . . . . . . Cannons 143 | . 8 10 4 . . . . 5 1 . 2 7 3 1 2 10 13 6 3 . 1 4 26 16 21 AOE 37 | . . . . . . 3 . . . . . 3 . . . 10 5 1 . . . . 3 . 12 Classes Destroyed 24 | . 7 . 4 2 . 1 1 1 . . 1 . 1 . . 2 1 1 . . . . . 2 . Worker 9 | . 1 . 4 . . . 1 2 . . . . . . . . 1 . . . . . . . . Builder 6 | . . . 1 . . . 1 . . . . . 1 . . . 1 . . . . . . . 2 Tunneler 2 | . 1 . . 1 . . . . . . . . . . . . . . . . . . . . . Hauler 19 | . 2 . 6 . . . 2 5 . . . . . . . 2 . . . . . 1 1 . . Recycler 5 | . 1 . 1 . . . . . . . . . . . . 1 . . . . . . . 2 . Mechanic 2 | . . . . . . . . 1 . . . . . . . . 1 . . . . . . . . Operator 4 | . . . 2 . . . . . . . . 1 1 . . . . . . . . . . . . Watcher 13 | . 3 . 3 . . . 3 . . . . . . 1 . . 1 . . . . . 1 1 . Swarmer 56 | . 9 6 7 7 . 8 7 . . . . 4 2 . . . 2 . . . 1 . . . 3 Saboteur 2 | . . . . . . . . . . . . . . . . 1 . . . . . . . . 1 Grunt 125 | . 8 6 12 3 . 7 14 5 . . . 2 7 . . 10 12 1 . . . 4 15 3 16 Brawler 5 | . . . 1 . . . . . . . . . . . . 1 3 . . . . . . . . Duelist 4 | . . . . . . 2 . . . . . . . . . . . . 2 . . . . . . Sentry 46 | . . . 8 . . . 6 8 1 . 2 3 6 . 2 3 1 . 1 . . 1 4 . . Demolisher 4 | . . . . 2 . . . 1 . . . . . . . . 1 . . . . . . . . Specialist 4 | . . . . . . . . . . . . . . . . 4 . . . . . . . . . Hunter 23 | . . . . . . . 1 . . . 1 1 3 . . . 2 . . . . . 8 5 2 Programmer 40 | . . . . . . . . . . . 2 2 . . . 1 2 . . . . . 8 9 16 Heavy 1 | . . . . . . . . . . . . . . . . . 1 . . . . . . . . Behemoth 2 | . . . . . . . . . . . . . 2 . . . . . . . . . . . . Cetus Guard 1 | . . . . . . . . . . . . . . 1 . . . . . . . . . . . Striker 2 | . . . . . . . . . . . . . . . . . . . . . . . . 2 . Alpha 7 1 | . . . . . . . . . . . . . . . . . . . . . . . . 1 . Assembled 15 | . . . . 15 . . . . . . . . . . . . . . . . . . . . . Thug 4 | . . . . . . . . . . . . . 1 1 . . . 2 . . . . . . . Butcher 5 | . . . . . . . . . . . . . 1 . . . . 4 . . . . . . . Mutant 1 | . . . . . . . . . . . . . . . . . . 1 . . . . . . . Best Kill Streak 13 | . 5 4 12 11 . 7 7 7 1 . 2 5 5 2 2 12 7 4 3 . 1 2 9 11 13 Combat Bots Only 12 | . 5 4 6 11 . 7 7 5 1 . 2 5 5 1 2 12 9 4 3 . 1 2 8 10 12 Max Kills in Single Turn 5 | . 2 2 2 2 . 3 2 2 1 . 1 3 2 2 1 3 3 1 1 . 1 1 2 2 5 Gunslinging 1 | . . . 1 1 . 1 1 . . . . . . . . . . . . . . . . . . Exploded 3 | . . . . . . 3 . . . . . 3 . . . 3 3 1 . . . . 1 . 3 Melee 1 | . . . . . . . . . . . . . . . . . . . . . . . . . 1 Uniques/NPCs Destroyed . | . . . . . . . . . . . . . . . . . . . . . . . . . . Combat | -11 -10 -10 -9 -9 -9 -8 -8 -8 -8 -8 -6 -5 -5 -5 -5 -5 -4 -4 -4 -4 -3 -3 -2 -2 -1 -------- Run | Yrd Mat Min Mat Min Exi Min Mat Sto Rec Scr Fac Fac Ext Cet Arc Hub Fac Upp Upp Zhi Pro Res Res Tes Acc Hostile Shots Fired 1946 | . 58 47 85 64 . 55 87 39 2 . 72 78 133 25 2 57 239 90 6 . 16 66 322 302 101 Missed 507 | . 16 4 25 8 . 12 20 17 1 . 19 27 50 9 2 22 38 10 . . 8 32 89 56 42 Hits 1439 | . 42 43 60 56 . 43 67 22 1 . 53 51 83 16 . 35 201 80 6 . 8 34 233 246 59 Melee 31 | . . . . 9 . 3 . . . . . . . . . . 3 5 2 . . . . 8 1 Projectile 1408 | . 42 43 60 47 . 40 67 22 1 . 53 51 83 16 . 35 198 75 4 . 8 34 233 238 58 AOE 13 | . . . . 6 . . . 1 . . . 1 . . . . 5 . . . . . . . . Critical Strikes 64 | . . . 3 1 . . 1 5 . . 1 3 3 3 . 2 9 3 1 . . 1 5 17 6 Actively Blocked 21 | . . . . . . . . . . . . . . . . . . . . . . 1 5 9 6 Part Disruptions 3 | . . . . 1 . . . . . . . . . . . . . 1 . . . . . 1 . Damage Taken 26783 | . 388 387 758 921 . 597 874 445 14 . 622 1207 1723 701 29 890 4364 1337 181 . 189 453 4044 5224 1435 Core 2499 | . 84 41 113 95 . 46 118 78 . . 100 109 158 29 . 134 249 250 . . . 29 319 441 106 Absorbed by Shields 2310 | . . . . . . . . . . . . . 166 63 . . 710 115 . . . 272 744 224 16 Reduced by Siege Mode 1031 | . . . . . . . . . . . . . 25 . . . 516 202 69 . . . 32 187 . Redirected to Shielding 198 | . 14 26 . . . . . . . . . . . . . . . . . . 18 73 67 . . Ignored by Resistances 848 | . . . . . . . . . . . . . . . . . . . . . . 89 525 234 . Regen/Repaired (Parts) 46 | . . . 46 . . . . . . . . . . . . . . . . . . . . . . Core Remaining (%) 68 | 100 . 50 . . . 36 . . . 64 88 . . . . 57 . . . . 56 97 . 43 93 Volleys Fired 1202 | . 53 26 67 50 . 26 56 31 1 . 19 30 71 19 9 35 148 54 21 20 18 67 210 108 63 Largest 3 | . 2 2 3 3 . 3 3 3 3 . 3 3 3 3 3 3 3 2 1 1 1 1 1 1 1 Hottest 278 | . 60 60 168 75 . 73 108 208 208 . 250 260 250 269 278 278 276 184 90 90 90 113 120 130 200 Shots Fired 1952 | . 106 52 201 150 . 75 168 92 3 . 36 68 138 43 22 84 150 56 21 20 19 67 208 110 63 Gun 844 | . 69 5 185 150 . 75 168 43 1 . 20 28 75 3 . 2 17 1 . . . 2 . . . Cannon 1047 | . 37 47 16 . . . . 49 2 . 16 39 29 38 22 76 119 55 21 20 19 65 204 110 63 Launcher 15 | . . . . . . . . . . . . 1 . . . 6 4 . . . . . 4 . . Special 46 | . . . . . . . . . . . . . 34 2 . . 10 . . . . . . . . Kinetic 753 | . 106 52 158 150 . 75 129 49 . . . . 10 . . 2 17 . . . . . . 5 . Thermal 1011 | . . . 43 . . . 39 37 2 . 31 65 11 32 22 76 98 56 21 20 19 67 204 105 63 Explosive 15 | . . . . . . . . . . . . 1 . . . 6 4 . . . . . 4 . . Electromagnetic 127 | . . . . . . . . 6 1 . 5 2 83 9 . . 21 . . . . . . . . Impact 44 | . . . . . . . . . . . . . 34 . . . 10 . . . . . . . . Robot Hit Streak 54 | . 9 9 14 8 . 14 17 14 4 . 18 10 18 7 8 10 20 44 54 20 2 5 27 15 7 Robot Miss Streak 8 | . 6 1 6 5 . 3 5 3 . . 1 4 4 3 1 3 4 2 1 2 4 5 3 8 3 Penetration Max 3 | . . . . . . . 1 1 . . . . . . . . 1 . . . . . . 3 . Secondary Targets 20 | . . . 3 9 . 4 4 . . . . . . . . . . . . . . . . . . Max Gunslinging Chain 1 | . . . 1 1 . 1 1 . . . . . . . . . . . . . . . . . . Capacitor 669 | . . . . . . . . . . . . . . . . . 116 54 21 20 19 67 204 105 63 Shots Hit Robots 1269 | . 56 39 121 81 5 47 106 57 3 9 23 37 94 30 18 49 112 45 17 18 4 35 156 70 37 Core Hits 647 | . 34 14 62 42 . 26 60 53 3 2 10 23 31 10 4 53 45 13 6 7 1 16 76 26 30 Critical Kills 22 | . 1 . 1 1 . . 1 1 . 1 . . . . . . 1 . . . . . 5 6 4 Critical Parts Destroyed 12 | . . . . . . . . . . 1 . . 6 . . . . . . . . . . 5 . Critical Strikes 54 | . 3 2 5 1 . . 1 2 . 2 . 6 8 . . . 2 . . . . . 5 13 4 Burn 9 | . . . 2 . . . . 1 . . . 6 . . . . . . . . . . . . . Meltdown 12 | . . . . . . . . 1 . . . . . . . . . . . . . . 5 2 4 Destroy 16 | . 1 . 1 1 . . 1 . . . . . . . . . 1 . . . . . . 11 . Blast 6 | . 2 2 2 . . . . . . . . . . . . . . . . . . . . . . Corrupt 3 | . . . . . . . . . . . . . 2 . . . 1 . . . . . . . . Smash 8 | . . . . . . . . . . 2 . . 6 . . . . . . . . . . . . Melee Attacks 17 | . . . . . 5 . 2 . 1 9 . . . . . . . . . . . . . . . Impact 11 | . . . . . . . 2 . 1 8 . . . . . . . . . . . . . . . Slashing . | . . . . . . . . . . . . . . . . . . . . . . . . . . Piercing . | . . . . . . . . . . . . . . . . . . . . . . . . . . Sneak Attacks 6 | . . . . . 5 . . . . 1 . . . . . . . . . . . . . . . Combat Hostiles . | . . . . . . . . . . . . . . . . . . . . . . . . . . Follow-up Attacks . | . . . . . . . . . . . . . . . . . . . . . . . . . . Damage Inflicted 52849 | . 790 734 2337 1399 . 990 2180 1586 97 652 707 1409 3607 1131 760 4163 5998 1504 581 696 267 1379 8003 3822 8057 Guns 9770 | . 442 36 1996 1356 . 811 2176 610 26 . 371 360 1101 65 . . 368 29 . . . 23 . . . Cannons 31442 | . 335 678 249 . . . . 968 54 . 324 679 572 1066 760 2122 3664 1475 581 696 142 1356 6901 3722 5098 Explosions 8235 | . . . . . . 162 . . . . . 370 197 . . 2041 1303 . . . 125 . 1078 . 2959 Melee 652 | . . . . . . . . . . 652 . . . . . . . . . . . . . . . Ramming 468 | . 13 20 92 43 . 17 4 8 17 . 12 . 118 . . . . . . . . . 24 100 . Kinetic 8641 | . 777 714 1770 1356 . 811 1750 898 . . . . 129 . . . 368 . . . . . . 68 . Thermal 33662 | . . . 475 . . 162 426 580 54 . 626 1011 285 873 760 2122 3249 1504 581 696 267 1379 6901 3654 8057 Explosive 4278 | . . . . . . . . . . . . 370 . . . 1799 1100 . . . . . 1009 . . Electromagnetic 2866 | . . . . . . . . 100 26 . 69 28 1456 258 . 242 618 . . . . . 69 . . Impact 2934 | . . . . . . . . . . 652 . . 1619 . . . 663 . . . . . . . . Slashing . | . . . . . . . . . . . . . . . . . . . . . . . . . . Piercing . | . . . . . . . . . . . . . . . . . . . . . . . . . . Highest Corruption 23 | . . . . . . . . 8 8 . 2 3 3 1 . 7 2 4 4 4 4 . 11 23 10 Average Corruption 4 | . . . . . . . . 7 8 . 1 2 2 1 . 5 2 3 4 4 4 . 4 16 2 Corruption Purged 4 | . . . . . . . . . . . . . 3 1 . . . . . . . . . . . Corruption Blocked . | . . . . . . . . . . . . . . . . . . . . . . . . . . Effects 196 | . . . . . . . . 13 16 . 2 5 5 1 . . . 15 7 6 7 . 14 48 57 Message Errors 32 | . . . . . . . . 2 2 . . 2 . . . . . 2 1 1 1 . 2 8 11 Matter Fused 48 | . . . . . . . . 4 7 . . . . . . . . 5 5 1 2 . 2 9 13 Heat Flow Errors 27 | . . . . . . . . 2 5 . 1 . 1 . . . . 2 . 2 . . 3 4 7 Energy Discharges 21 | . . . . . . . . 1 1 . . 1 1 . . . . 1 . . . . . 7 9 Parts Rejected 3 | . . . . . . . . . . . . 1 1 . . . . . . . . . 1 . . Parts Fused 4 | . . . . . . . . . . . . . 1 . . . . . . . . . . 1 2 Data Loss (minor) 26 | . . . . . . . . 2 . . . 1 . . . . . 3 1 1 2 . 2 7 7 Data Loss (major) 10 | . . . . . . . . . 1 . . . . . . . . 1 . . 1 . 2 2 3 Misfires 6 | . . . . . . . . . . . . . . 1 . . . 1 . . 1 . . 3 . Alerts 11 | . . . . . . . . 1 . . 1 . 1 . . . . . . 1 . . . 2 5 Misdirections 4 | . . . . . . . . . . . . . . . . . . . . . . . . 4 . Weapon Failures 4 | . . . . . . . . 1 . . . . . . . . . . . . . . 2 1 . Overload Shots . | . . . . . . . . . . . . . . . . . . . . . . . . . . Overflow Damage 3715 | . . 38 . . . . . 1 . 128 49 63 708 25 . 27 252 45 21 51 18 27 95 449 1718 Projectiles 3096 | . . 38 . . . . . 1 . . 49 1 708 25 . 12 233 45 21 51 18 27 90 394 1383 Explosions 436 | . . . . . . . . . . . . 62 . . . 15 19 . . . . . 5 . 335 Melee 183 | . . . . . . . . . . 128 . . . . . . . . . . . . . 55 . Knockbacks 46 | . 4 8 4 . . . . 8 1 4 . . 9 . . . 5 . . . . . . 3 . Impact 22 | . . 1 3 . . . . . 1 3 . . 9 . . . 4 . . . . . . 1 . Kinetic 21 | . 3 7 1 . . . . 8 . . . . . . . . . . . . . . . 2 . Secondary 3 | . 1 . . . . . . . . 1 . . . . . . 1 . . . . . . . . Self-Inflicted Damage 456 | . . . . . . . . . . . . . 32 . . 91 91 . . . . . 201 . 41 Shots 9 | . . . . . . . . . . . . . 1 . . 1 2 . . . . . 4 . 1 Rammed 47 | . 2 8 14 3 . 2 1 1 3 . 2 . 9 . . . . . . . . . 2 . . Targets Rammed 52 | . 3 8 15 4 . 2 1 1 3 . 2 . 9 . . . . . . . . . 2 2 . Kicked 2 | . . . . . . . . . . . . . . . . . . . . . . . . 2 . Crushed 3 | . 1 . 1 1 . . . . . . . . . . . . . . . . . . . . . Highest Temperature 607 | . 42 24 195 318 . 122 45 330 248 . 227 162 179 442 148 314 324 607 . . . . 181 274 255 Average Temperature 76 | . 16 13 54 68 . 46 15 74 89 . 68 62 60 108 50 132 129 258 . . . . 24 27 82 Received Heat Transfer 4015 | . 114 51 300 276 . 189 279 252 9 . 153 183 313 81 9 240 520 269 18 . 21 65 507 115 51 Effects 6 | . . . . . . . . 1 . . . . . . . . . 5 . . . . . . . Energy Bleed 1 | . . . . . . . . 1 . . . . . . . . . . . . . . . . . Matter Decay 1 | . . . . . . . . . . . . . . . . . . 1 . . . . . . . Short Circuit 1 | . . . . . . . . . . . . . . . . . . 1 . . . . . . . Damage (minor) 1 | . . . . . . . . . . . . . . . . . . 1 . . . . . . . Damage (major) 1 | . . . . . . . . . . . . . . . . . . 1 . . . . . . . Damage (core) 1 | . . . . . . . . . . . . . . . . . . 1 . . . . . . . Siege Activations 13 | . . . . . . . . . . . . . 2 1 . . 4 2 1 . . . 1 2 . Total Turns 369 | . . . . . . . . . . . . . 46 8 . . 129 97 13 . . . 12 64 . Longest Duration 75 | . . . . . . . . . . . . . 43 8 . . 75 55 13 . . . 12 36 . Martial Activations . | . . . . . . . . . . . . . . . . . . . . . . . . . . Shielding Activations . | . . . . . . . . . . . . . . . . . . . . . . . . . . Robots Disrupted 1 | . . . . . . . . . . . . . . . . 1 . . . . . . . . . Combat Hostiles 1 | . . . . . . . . . . . . . . . . 1 . . . . . . . . . Robots Corrupted 20 | . . . . . . . . . . 2 . . 12 1 . . 4 . . . . . . 1 . Combat Hostiles 14 | . . . . . . . . . . . . . 11 . . . 3 . . . . . . . . Parts Fried 30 | . . . . . . . . . . 1 . . 18 1 . 1 6 . . . . . . 2 1 Impact Corruptions 31 | . . . . . . . . . . 6 . . 15 . . . 8 . . . . . . 2 . Robots Melted 19 | . . . 1 . . . . 1 . . . 1 . . . . . 1 . . . 1 6 4 4 Combat Hostiles 19 | . . . 1 . . . . 1 . . . 1 . . . . . 1 . . . 1 6 4 4 Parts Melted 84 | . . . 5 . . . 1 7 . . 4 9 . . 2 2 4 1 3 . . 3 26 12 5 Heat Transferred 30258 | . . . 1147 . . 200 851 905 74 . 1000 2372 400 1118 659 1453 2481 1628 629 582 100 1303 5957 2537 4862 Parts Sabotaged 3 | . . . . . . . . . . . . . . . . . 3 . . . . . . . . Parts Stolen . | . . . . . . . . . . . . . . . . . . . . . . . . . . Parts Stripped . | . . . . . . . . . . . . . . . . . . . . . . . . . . Power Chain Reactions 5 | . . . . . . . . . . . . . 2 . . 1 1 . . . 1 . . . . Alert | -11 -10 -10 -9 -9 -9 -8 -8 -8 -8 -8 -6 -5 -5 -5 -5 -5 -4 -4 -4 -4 -3 -3 -2 -2 -1 ------- Run | Yrd Mat Min Mat Min Exi Min Mat Sto Rec Scr Fac Fac Ext Cet Arc Hub Fac Upp Upp Zhi Pro Res Res Tes Acc Maximum Alert Level 4 | . . . 1 1 . . 2 4 2 . . . 2 1 . 4 3 . . . . . 2 1 4 Low Security (%) 54 | . 100 100 69 96 . 100 14 . . . 100 100 73 49 100 21 . . . . . 100 50 84 1 Level 1 11 | . . . 30 3 . . 41 8 32 . . . 9 50 . 30 . . . . . . 38 15 . Level 2 18 | . . . . . . . 44 2 67 . . . 17 . . 9 16 . . . . . 10 . 57 Level 3 12 | . . . . . . . . 8 . . . . . . . 35 83 . . . . . . . 40 Level 4 3 | . . . . . . . . 81 . . . . . . . 2 . . . . . . . . . Level 5 . | . . . . . . . . . . . . . . . . . . . . . . . . . . High Security . | . . . . . . . . . . . . . . . . . . . . . . . . . . Max Security . | . . . . . . . . . . . . . . . . . . . . . . . . . . Peak Influence 1328 | . 197 92 316 209 . 180 604 1328 481 . 54 178 533 333 152 1234 1063 . . . . 153 566 259 1113 Initial 600 | . . 33 . 109 . . 15 235 481 . . 13 74 298 33 42 600 . . . . 153 9 166 140 Average 333 | . 87 28 150 124 . 76 376 1117 408 . 7 37 181 205 108 546 802 . . . . 15 198 130 736 Influence Increases 14348 | . 535 320 912 375 . 433 980 1529 148 25 219 432 1483 298 139 1486 1105 20 60 5 35 317 1140 735 1617 Destroy 0b10 Robot/C 7500 | . 340 240 560 260 . 340 560 580 20 . 100 240 660 160 80 500 620 20 60 . 20 100 700 400 940 Destroy 0b10 Robot/NC 390 | . 40 . 85 5 . . 35 65 . 25 . 5 20 10 . 30 20 . . 5 . 5 10 15 15 Destroy Leader 1488 | . 80 50 168 40 . 50 130 194 . . 50 60 72 . . 106 102 . . . . 12 142 62 170 Allied During Kill 1625 | . . . . 10 . . . 412 . . . . 425 92 40 291 83 . . . . . . . 272 Successful Hack 250 | . 15 . 23 . . . 32 12 7 . 19 35 29 . . . 36 . . . . . 21 21 . Select Force Hacks 240 | . 60 . 60 . . . . . 120 . . . . . . . . . . . . . . . . Disable Machine 780 | . . . 15 15 . 30 15 45 . . 30 45 180 . 15 75 45 . . . . . 45 150 75 Anti-Garrison Action 550 | . . . . . . . 200 200 . . . . . . . 150 . . . . . . . . . Destroy Structure 1120 | . . . 1 . . 13 8 21 1 . 5 32 52 36 4 334 124 . . . . 50 222 87 130 Advance Influence 150 | . . . . . . . . . . . . . . . . . . . . . . 150 . . . Partial Spotted 15 | . . . . . . . . . . . 15 . . . . . . . . . . . . . . Lose Combat Pursuer 240 | . . 30 . 45 . . . . . . . 15 45 . . . 75 . . . 15 . . . 15 Influence Decreases 13391 | . 450 405 632 615 40 392 463 853 1043 364 191 307 1103 747 101 382 1288 746 221 161 30 304 862 796 895 Entered New Map 3629 | . . 52 . 171 40 . 26 323 753 339 . 15 79 235 51 80 626 386 61 156 . 2 9 130 95 Time Decay 7475 | . 450 343 612 374 . 352 422 410 270 25 161 227 520 302 50 262 342 310 160 5 30 199 433 446 770 Lost Part 820 | . . 10 20 10 . 40 15 . . . 30 65 50 30 . 20 130 50 . . . . 120 220 10 Lost Ally 731 | . . . . 60 . . . 120 20 . . . 271 180 . 20 40 . . . . . . . 20 Purge Threat 736 | . . . . . . . . . . . . . 183 . . . 150 . . . . 103 300 . . Squads Dispatched 99 | . 4 . 2 . . 1 4 5 . . 8 9 3 . . 9 11 . . . . 8 7 5 23 Investigation 27 | . 2 . 2 . . . 1 2 . . 6 4 2 . . . 2 . . . . 3 2 . 1 Extermination 24 | . . . . . . . . . . . 2 2 . . . . 1 . . . . 1 3 4 11 Reinforcement 23 | . 2 . . . . 1 2 1 . . . 3 1 . . 1 3 . . . . 4 2 1 2 Assault 16 | . . . . . . . . 1 . . . . . . . 4 2 . . . . . . . 9 Garrison 9 | . . . . . . . 1 1 . . . . . . . 4 3 . . . . . . . . Intercept . | . . . . . . . . . . . . . . . . . . . . . . . . . . Searches Triggered . | . . . . . . . . . . . . . . . . . . . . . . . . . . Construction Impeded 4 | . . . . . . 1 . . . . . . . . . . 1 . . . . . 1 . 1 Haulers Reinforced 3 | . . . . . . . . . . . . . . . . . . . . . . 2 1 . . Active Scanning Responses . | . . . . . . . . . . . . . . . . . . . . . . . . . . Cargo Convoy Interrupts . | . . . . . . . . . . . . . . . . . . . . . . . . . . Stealth | -11 -10 -10 -9 -9 -9 -8 -8 -8 -8 -8 -6 -5 -5 -5 -5 -5 -4 -4 -4 -4 -3 -3 -2 -2 -1 --------- Run | Yrd Mat Min Mat Min Exi Min Mat Sto Rec Scr Fac Fac Ext Cet Arc Hub Fac Upp Upp Zhi Pro Res Res Tes Acc Distress Signals 29 | . . . 3 . . . 1 4 . . 1 2 2 2 . . . . . . 1 7 4 . 2 Communications Jammed . | . . . . . . . . . . . . . . . . . . . . . . . . . . Distress Signals . | . . . . . . . . . . . . . . . . . . . . . . . . . . Times Spotted 511 | . 23 14 37 34 . 14 39 33 1 . 10 27 36 11 4 29 42 11 3 . 4 20 50 23 46 Peak Tracking Total 12 | . 3 4 7 9 . 4 6 11 1 . 3 7 7 5 2 12 9 6 3 . 3 6 9 8 11 Tactical Retreats 16 | . . 2 . 6 . . . . . . . 1 3 . . . 2 . . . 1 . . . 1 Traps | -11 -10 -10 -9 -9 -9 -8 -8 -8 -8 -8 -6 -5 -5 -5 -5 -5 -4 -4 -4 -4 -3 -3 -2 -2 -1 ------- Run | Yrd Mat Min Mat Min Exi Min Mat Sto Rec Scr Fac Fac Ext Cet Arc Hub Fac Upp Upp Zhi Pro Res Res Tes Acc Traps Triggered 14 | . 3 . . . . . . 5 . . . . 1 . . . . . . . . 1 4 . . Indirectly . | . . . . . . . . . . . . . . . . . . . . . . . . . . Trap Hack Attempts . | . . . . . . . . . . . . . . . . . . . . . . . . . . Triggered . | . . . . . . . . . . . . . . . . . . . . . . . . . . Disarmed . | . . . . . . . . . . . . . . . . . . . . . . . . . . Reprogrammed . | . . . . . . . . . . . . . . . . . . . . . . . . . . Reused 1 | . . . . . . . . . . . . . . . . . . 1 . . . . . . . Traps Extracted . | . . . . . . . . . . . . . . . . . . . . . . . . . . Installed 1 | . . . . . . . . . . . . . . . . . . 1 . . . . . . . Triggered 1 | . . . . . . . . . . . . . . . . . . 1 . . . . . . . Most Traps Carried 1 | . . . . . . . . . . 1 1 1 1 1 1 1 1 1 . . . . . . . Machines | -11 -10 -10 -9 -9 -9 -8 -8 -8 -8 -8 -6 -5 -5 -5 -5 -5 -4 -4 -4 -4 -3 -3 -2 -2 -1 ---------- Run | Yrd Mat Min Mat Min Exi Min Mat Sto Rec Scr Fac Fac Ext Cet Arc Hub Fac Upp Upp Zhi Pro Res Res Tes Acc Machines Disabled 58 | . . . 1 1 . 2 1 3 . . 2 3 13 . 1 6 3 1 . 1 . . 3 12 5 Max in Single Turn 5 | . . . 1 1 . 2 1 1 . . 1 2 1 . 1 5 1 1 . 1 . . 1 1 1 Garrison Access 4 | . . . . . . . 1 1 . . . . . . . 1 . . . . . . 1 . . Network Hub 1 | . . . . . . . . . . . . . . . . 1 . . . . . . . . . Machines Repaired . | . . . . . . . . . . . . . . . . . . . . . . . . . . Machines Dismantled . | . . . . . . . . . . . . . . . . . . . . . . . . . . Machines Sabotaged . | . . . . . . . . . . . . . . . . . . . . . . . . . . Overloaded Fab Kills . | . . . . . . . . . . . . . . . . . . . . . . . . . . Hacking | -11 -10 -10 -9 -9 -9 -8 -8 -8 -8 -8 -6 -5 -5 -5 -5 -5 -4 -4 -4 -4 -3 -3 -2 -2 -1 --------- Run | Yrd Mat Min Mat Min Exi Min Mat Sto Rec Scr Fac Fac Ext Cet Arc Hub Fac Upp Upp Zhi Pro Res Res Tes Acc Machines Accessed 95 | . 6 . 11 . . . 6 10 9 6 11 8 8 . . . 3 . . 4 . 3 5 4 1 Terminals 57 | . 4 . 8 . . . 5 9 5 . 4 3 7 . . . 2 . . . . 3 3 4 . Fabricators . | . . . . . . . . . . . . . . . . . . . . . . . . . . Repair Stations 1 | . . . 1 . . . . . . . . . . . . . . . . . . . . . . Recycling Units 23 | . 2 . 2 . . . . . 4 . 7 4 1 . . . 1 . . . . . 1 . 1 Scanalyzers . | . . . . . . . . . . . . . . . . . . . . . . . . . . Garrison Access 4 | . . . . . . . 1 1 . . . 1 . . . . . . . . . . 1 . . Total Hacks 252 | . 15 . 32 . . . 15 19 13 24 24 15 22 . . . 18 . . 17 . 9 16 12 1 Successful 129 | . 8 . 18 . . . 7 5 7 24 6 8 9 . . . 6 . . 17 . 3 6 4 1 Failed 122 | . 7 . 13 . . . 8 14 6 . 18 7 13 . . . 12 . . . . 6 10 8 . Catastrophic 21 | . 1 . . . . . 2 2 1 . 2 . 2 . . . 2 . . . . 2 5 2 . Database Lockouts 1 | . . . 1 . . . . . . . . . . . . . . . . . . . . . . Manual 147 | . 11 . 25 . . . 9 8 13 . 24 11 9 1 . . 12 . . . . 6 10 7 1 Terminals 162 | . 13 . 28 . . . 11 18 9 . 9 7 20 . . . 13 . . . . 9 13 12 . Fabricators . | . . . . . . . . . . . . . . . . . . . . . . . . . . Repair Stations 2 | . . . 2 . . . . . . . . . . . . . . . . . . . . . . Recycling Units 39 | . 2 . 2 . . . . . 4 . 15 7 2 . . . 5 . . . . . 1 . 1 Scanalyzers . | . . . . . . . . . . . . . . . . . . . . . . . . . . Garrison Access 8 | . . . . . . . 4 1 . . . 1 . . . . . . . . . . 2 . . Terminal Hacks 81 | . 6 . 10 . . . 4 3 2 24 . 2 5 . . . 3 . . 17 . 1 2 2 . Record 24 | . . . . . . . . . . 17 . . . . . . 1 . . 5 . . . 1 . Part Schematic 5 | . . . . . . . . . 1 . . . . . . . . . . 4 . . . . . Robot Analysis 12 | . 2 . 1 . . . . . . 5 . . . . . . . . . 4 . . . . . Prototype ID Bank 18 | . 3 . 7 . . . 2 . 1 . . 1 . . . . . . . 4 . . . . . Open Door 4 | . . . . . . . . 2 . 1 . . 1 . . . . . . . . . . . . Branch Access Points 3 | . . . . . . . 1 1 . . . 1 . . . . . . . . . . . . . Terminal Index 1 | . . . . . . . . . . . . . . . . . 1 . . . . . . . . Unreport Threat 6 | . . . . . . . . . . . . . 2 . . . 1 . . . . 1 2 . . Locate Traps 6 | . 1 . 1 . . . 1 . . . . . 2 . . . . . . . . . . 1 . Hauler Manifests 1 | . . . 1 . . . . . . . . . . . . . . . . . . . . . . Proto ID Catalog 1 | . . . . . . . . . . 1 . . . . . . . . . . . . . . . Fabricator Hacks . | . . . . . . . . . . . . . . . . . . . . . . . . . . Repair Station Hacks 2 | . . . 2 . . . . . . . . . . . . . . . . . . . . . . Scan Component 1 | . . . 1 . . . . . . . . . . . . . . . . . . . . . . Repair 1 | . . . 1 . . . . . . . . . . . . . . . . . . . . . . Recycling Unit Hacks . | . . . . . . . . . . . . . . . . . . . . . . . . . . Scanalyzer . | . . . . . . . . . . . . . . . . . . . . . . . . . . Garrison Access Hacks 1 | . . . . . . . . . . . . . . . . . . . . . . . 1 . . Seal Access 1 | . . . . . . . . . . . . . . . . . . . . . . . 1 . . Unauthorized Hacks 44 | . 2 . 6 . . . 3 2 5 . 6 6 4 . . . 3 . . . . 1 3 2 1 Terminals 22 | . . . 4 . . . 2 1 1 . 2 2 3 . . . 2 . . . . 1 2 2 . Botnet 21 | . . . 4 . . . 2 1 1 . 2 2 2 . . . 2 . . . . 1 2 2 . Disrupt 1 | . . . . . . . . . . . . . 1 . . . . . . . . . . . . Fabricators . | . . . . . . . . . . . . . . . . . . . . . . . . . . Repair Stations . | . . . . . . . . . . . . . . . . . . . . . . . . . . Recycling Units 20 | . 2 . 2 . . . . . 4 . 4 4 1 . . . 1 . . . . . 1 . 1 Tunnel 8 | . 2 . 2 . . . . . 4 . . . . . . . . . . . . . . . . Fedlink 10 | . . . . . . . . . . . 4 4 1 . . . . . . . . . 1 . . Scraphulk 2 | . . . . . . . . . . . . . . . . . 1 . . . . . . . 1 Scanalyzers . | . . . . . . . . . . . . . . . . . . . . . . . . . . Garrison Access 2 | . . . . . . . 1 1 . . . . . . . . . . . . . . . . . Jam 2 | . . . . . . . 1 1 . . . . . . . . . . . . . . . . . Data Cores Recovered 3 | . . . 2 . . . . . . . . . 1 . . . . . . . . . . . . Used . | . . . . . . . . . . . . . . . . . . . . . . . . . . Hacking Detections 59 | . 4 . 8 . . . 5 7 5 . 9 4 6 . . . 2 . . . . 3 3 3 . Full Trace Events 5 | . . . . . . . . 1 1 . 2 . . . . . 1 . . . . . . . . Feedback Events . | . . . . . . . . . . . . . . . . . . . . . . . . . . Feedback Blocked . | . . . . . . . . . . . . . . . . . . . . . . . . . . Robot Schematics Acquired . | . . . . . . . . . . . . . . . . . . . . . . . . . . Robots Built . | . . . . . . . . . . . . . . . . . . . . . . . . . . Authchips . | . . . . . . . . . . . . . . . . . . . . . . . . . . Time . | . . . . . . . . . . . . . . . . . . . . . . . . . . Total Robot Build Rating . | . . . . . . . . . . . . . . . . . . . . . . . . . . Part Schematics Acquired 5 | . . . . . . . . . 1 . . . . . . . . . . 4 . . . . . Parts Built . | . . . . . . . . . . . . . . . . . . . . . . . . . . Authchips . | . . . . . . . . . . . . . . . . . . . . . . . . . . Time . | . . . . . . . . . . . . . . . . . . . . . . . . . . Total Part Build Rating . | . . . . . . . . . . . . . . . . . . . . . . . . . . Parts Repaired 1 | . . . 1 . . . . . . . . . . . . . . . . . . . . . . Time 26 | . . . 26 . . . . . . . . . . . . . . . . . . . . . . Parts Recycled . | . . . . . . . . . . . . . . . . . . . . . . . . . . Recycled Matter . | . . . . . . . . . . . . . . . . . . . . . . . . . . Retrieved Matter . | . . . . . . . . . . . . . . . . . . . . . . . . . . Retrieved Components . | . . . . . . . . . . . . . . . . . . . . . . . . . . Parts Scanalyzed . | . . . . . . . . . . . . . . . . . . . . . . . . . . Part Schematics Acquired . | . . . . . . . . . . . . . . . . . . . . . . . . . . Parts Damaged . | . . . . . . . . . . . . . . . . . . . . . . . . . . Bothacking | -11 -10 -10 -9 -9 -9 -8 -8 -8 -8 -8 -6 -5 -5 -5 -5 -5 -4 -4 -4 -4 -3 -3 -2 -2 -1 ------------ Run | Yrd Mat Min Mat Min Exi Min Mat Sto Rec Scr Fac Fac Ext Cet Arc Hub Fac Upp Upp Zhi Pro Res Res Tes Acc Used RIF Installer . | . . . . . . . . . . . . . . . . . . . . . . . . . . Robots Hacked 5 | . . . . . 4 . . . . 1 . . . . . . . . . . . . . . . Non-combat 3 | . . . . . 3 . . . . . . . . . . . . . . . . . . . . Combat 2 | . . . . . 1 . . . . 1 . . . . . . . . . . . . . . . Robot Hacks Applied 6 | . . . . . 5 . . . . 1 . . . . . . . . . . . . . . . parse_system 6 | . . . . . 5 . . . . 1 . . . . . . . . . . . . . . . Relay Couplers Released 2 | . . . . . . . . . . . . . . . . 2 . . . . . . . . . Machine Destruction 2 | . . . . . . . . . . . . . . . . 2 . . . . . . . . . Fabnet Peak Effective % . | . . . . . . . . . . . . . . . . . . . . . . . . . . Robots Rewired 13 | . . . . . . . . . . . . . 13 . . . . . . . . . . . . Allies Hacked . | . . . . . . . . . . . . . . . . . . . . . . . . . . Hacks Repelled . | . . . . . . . . . . . . . . . . . . . . . . . . . . Allies | -11 -10 -10 -9 -9 -9 -8 -8 -8 -8 -8 -6 -5 -5 -5 -5 -5 -4 -4 -4 -4 -3 -3 -2 -2 -1 -------- Run | Yrd Mat Min Mat Min Exi Min Mat Sto Rec Scr Fac Fac Ext Cet Arc Hub Fac Upp Upp Zhi Pro Res Res Tes Acc Total Allies 48 | . . . . 3 . . . 10 . . . . 25 5 . . 1 . . . . . . . 4 Largest Group 12 | . . . . 3 . . . 10 2 . . . 12 9 2 2 2 . . . . . . . 4 Highest-Rated Group 585 | . . . . 40 . . . 173 29 . . . 432 585 192 192 214 . . . . . . . 518 Highest-Rated Ally 159 | . . . . 16 . . . 29 16 . . . 159 153 96 96 123 . . . . . . . 139 Total Orders 2 | . . . . . . . . . . . . . . . . 2 . . . . . . . . . STAY 1 | . . . . . . . . . . . . . . . . 1 . . . . . . . . . FOLLOW 1 | . . . . . . . . . . . . . . . . 1 . . . . . . . . . Ally Attacks 513 | . . . . 8 . . . 159 6 . . . 116 62 17 49 42 . . . . . . . 54 Total Damage 12460 | . . . . 77 . . . 1931 66 . . . 2746 1847 570 1613 1289 . . . . . . . 2321 Kills 76 | . . . . 1 . . . 22 1 . . . 15 10 2 8 7 . . . . . . . 10 Allies Corrupted 1 | . . . . . . . . . . . . . . 1 . . . . . . . . . . . Allies Melted 1 | . . . . . . . . 1 . . . . . . . . . . . . . . . . . Intel | -11 -10 -10 -9 -9 -9 -8 -8 -8 -8 -8 -6 -5 -5 -5 -5 -5 -4 -4 -4 -4 -3 -3 -2 -2 -1 ------- Run | Yrd Mat Min Mat Min Exi Min Mat Sto Rec Scr Fac Fac Ext Cet Arc Hub Fac Upp Upp Zhi Pro Res Res Tes Acc Active Infowar (turns) 13618 | . . . . . . . . . . . 749 917 1555 677 110 564 779 334 320 297 319 913 821 517 4746 Optics 5533 | . . . . . . . . . . . 749 917 1555 677 110 564 779 182 . . . . . . . Sensors 5263 | . . . . . . . . . . . . . . . . . . . . . . . . 517 4746 Terrain 4335 | . . . . . . . . . . . 655 546 . . . 12 133 319 320 297 319 913 821 . . Robot Analysis Total 12 | . 2 . 1 . . . . . . 5 . . . . . . . . . 4 . . . . . Derelict Logs Recovered 2 | . . 1 . 1 . . . . . . . . . . . . . . . . . . . . . Drone Launches . | . . . . . . . . . . . . . . . . . . . . . . . . . . Drone Recoveries . | . . . . . . . . . . . . . . . . . . . . . . . . . . Exploration | -11 -10 -10 -9 -9 -9 -8 -8 -8 -8 -8 -6 -5 -5 -5 -5 -5 -4 -4 -4 -4 -3 -3 -2 -2 -1 ------------- Run | Yrd Mat Min Mat Min Exi Min Mat Sto Rec Scr Fac Fac Ext Cet Arc Hub Fac Upp Upp Zhi Pro Res Res Tes Acc Turns Passed 28400 | . 1367 1179 2206 878 363 889 1020 980 582 3213 751 917 1555 677 110 564 779 683 320 297 319 1501 1383 1109 4758 Spaces Moved 12121 | 1 592 676 1177 453 219 499 490 536 356 1535 430 501 650 328 53 285 316 314 174 165 246 772 619 543 191 Core . | . . . . . . . . . . . . . . . . . . . . . . . . . . Treads 11094 | . 553 676 1177 453 219 499 490 536 356 1535 430 501 650 328 53 285 316 314 174 99 . 578 619 253 . Legs 1027 | 1 39 . . . . . . . . . . . . . . . . . . 66 246 194 . 290 191 Wheels . | . . . . . . . . . . . . . . . . . . . . . . . . . . Hover . | . . . . . . . . . . . . . . . . . . . . . . . . . . Flight . | . . . . . . . . . . . . . . . . . . . . . . . . . . Fastest Speed 112 | 120 120 160 160 160 160 160 160 160 160 155 156 156 160 160 160 160 160 166 166 120 120 120 152 112 114 Average Speed 165 | 120 157 160 160 160 160 160 160 160 160 203 156 159 160 160 160 160 162 167 166 148 120 177 173 162 114 Slowest Speed 260 | 120 240 240 160 160 160 160 160 160 160 240 156 240 240 240 160 240 170 170 166 260 120 253 241 256 114 Overloaded Moves . | . . . . . . . . . . . . . . . . . . . . . . . . . . Propulsion Burnouts . | . . . . . . . . . . . . . . . . . . . . . . . . . . Robots Hopped . | . . . . . . . . . . . . . . . . . . . . . . . . . . Potential Cave-ins 1 | . . . . . . . . . . . . . . 1 . . . . . . . . . . . Cave-ins Triggered . | . . . . . . . . . . . . . . . . . . . . . . . . . . Teleports 1 | . . . . . . . . . . . . . . . . . . . . . . . 1 . . Exploration Rate (%) 54 | 1 89 98 89 87 64 96 49 92 72 92 16 20 76 59 80 42 10 47 41 60 46 20 20 47 7 Regions Visited 25 Branch Regions 16 Pre-discovered Areas 15 | . 2 2 2 . . . . 1 4 . 1 . . . . . . . . 3 . . . . . Known Exits Taken 6 | . . . . . . 1 1 1 . . 1 1 . . . . . . . . . 1 . . . Unknown Exits Taken 19 | 1 1 1 1 1 1 . . . 1 1 . . 1 1 1 1 1 1 1 1 1 . 1 1 . Scrap Searched 19 | . . 2 . . . 3 . . . 11 . . . . . . . 1 2 . . . . . . Spaces Dug 41 | . . . . . . . 2 . 1 . 5 8 . . . . . 6 3 . 6 7 1 2 . Terrain Destroyed 554 | . . . . . . 13 2 20 1 . 5 15 12 4 . 227 40 11 4 . 25 24 92 25 34 Melee 3 | . . . . . . . 2 . 1 . . . . . . . . . . . . . . . . Projectile 187 | . . . . . . . . 4 . . 5 15 5 4 . 24 14 11 4 . 15 24 37 21 4 AOE 360 | . . . . . . 13 . 16 . . . . 7 . . 203 26 . . . 10 . 55 . 30 Terrain Rammed . | . . . . . . . . . . . . . . . . . . . . . . . . . . Walls Destroyed . | . . . . . . . . . . . . . . . . . . . . . . . . . . Machines Disabled . | . . . . . . . . . . . . . . . . . . . . . . . . . . Actions | -11 -10 -10 -9 -9 -9 -8 -8 -8 -8 -8 -6 -5 -5 -5 -5 -5 -4 -4 -4 -4 -3 -3 -2 -2 -1 --------- Run | Yrd Mat Min Mat Min Exi Min Mat Sto Rec Scr Fac Fac Ext Cet Arc Hub Fac Upp Upp Zhi Pro Res Res Tes Acc Total 19442 | . 923 716 1375 517 229 537 605 591 363 1617 476 568 1040 459 64 342 545 469 205 222 268 908 916 760 4727 Wait 5131 | . 248 1 40 4 . . 27 . . 21 5 1 86 55 . . 37 74 6 . 5 . 30 26 4465 Move 12096 | . 591 675 1176 452 218 498 489 535 355 1534 430 500 649 327 52 284 315 313 173 164 245 771 618 542 190 Hop . | . . . . . . . . . . . . . . . . . . . . . . . . . . Pick Up 150 | . 7 . 18 1 3 4 5 3 . 15 4 7 9 13 1 5 12 6 1 7 . 8 7 13 1 Fast Attach 114 | . 9 1 12 . . . 3 2 . 7 1 3 9 8 . 1 5 7 1 6 . 15 7 16 1 Attach 149 | . 2 3 5 2 1 6 4 . . 1 7 11 17 6 . 6 13 7 2 6 . 6 17 25 2 Detach 107 | . 5 1 4 . . . 2 . . 3 2 6 18 6 . 1 3 5 1 7 . 17 7 17 2 Swap 106 | . . . 11 3 1 1 7 9 2 7 6 7 7 6 1 5 6 1 . 1 . 5 13 4 3 Drop 161 | . 5 1 27 1 1 . 9 9 1 20 1 3 11 19 1 5 6 1 . 11 . 17 5 7 . Fire 1202 | . 53 26 67 50 . 26 56 31 1 . 19 30 71 19 9 35 148 54 21 20 18 67 210 108 63 Melee 17 | . . . . . 5 . 2 . 1 9 . . . . . . . . . . . . . . . Ram . | . . . . . . . . . . . . . . . . . . . . . . . . . . Kick 2 | . . . . . . . . . . . . . . . . . . . . . . . . 2 . Crush 49 | . 3 8 15 4 . 2 1 1 3 . 1 . 9 . . . . . . . . . 2 . . Escape Stasis 2 | . . . . . . . . . . . . . . . . . . . . . . 2 . . . Rewire 155 | . . . . . . . . 1 . . . . 154 . . . . . . . . . . . . Trap 1 | . . . . . . . . . . . . . . . . . . 1 . . . . . . . Miscellaneous . | . . . . . . . . . . . . . . . . . . . . . . . . . . Route ------- -11/Scrapyard -10/Materials (discovered 3 exits: *Mat x2 / [*Min]) -10/Mines (discovered 2 exits: *Mat x2) -9/Materials (discovered 3 exits: *Mat x2 / [*Min]) -9/Mines (discovered 4 exits: *Mat x2 / [*Exi] / [*Zio]) -9/Exiles -8/Mines (discovered 2 exits: *Mat x2) -8/Materials (discovered 2 exits: [*Fac] / *Sto) -8/Storage (discovered 2 exits: [*Fac] / *Rec) -8/Recycling -8/Scraptown (discovered 2 exits: *Fac x2) -6/Factory (discovered 2 exits: *Fac x2) -5/Factory (discovered 4 exits: *Upp x2 / *Ext x2) -5/Extension (discovered 2 exits: *Fac / *Cet) -5/Cetus (discovered 2 exits: *Fac / [*Arc]) -5/Archives (discovered 2 exits: *Fac / *Hub) -5/Hub_04(d) -4/Factory -4/Upper Caves -4/Upper Caves -4/Zhirov -3/Proximity Caves -3/Research (discovered 2 exits: *Res / [*Arm]) -2/Research (discovered 2 exits: *Tes x2) -2/Testing -1/Access (discovered 2 exits: *Sur / Com) To Epsilon Eridani History --------- Turn | Location | Event 1 | -11/Scrapyard | Discovered new exit (range 0) 1 | -11/Scrapyard | Entered Materials 305 | -10/Materials | Build established: Mutant 473 | -10/Materials | Discovered new exit (range 14) 885 | -10/Materials | Discovered new exit (range 3) 1296 | -10/Materials | Discovered new exit (range 7) 1368 | -10/Materials | Entered Mines 1374 | -10/Mines | Learned location of Storage (-8) 1689 | -10/Mines | Discovered new exit (range 8) 1793 | -10/Mines | Discovered new exit (range 7) 2349 | -10/Mines | YI-UF0 nonchalantly dropped a Grenade Launcher on the ground 2374 | -10/Mines | Learned location of Zion (-7) 2547 | -10/Mines | Entered Materials 2547 | -9/Materials | Evolved 2 slots: Propulsion x1, Weapon x1 2852 | -9/Materials | Build established: Gunner 3537 | -9/Materials | Discovered new exit (range 12) 3669 | -9/Materials | Build established: Tank 3672 | -9/Materials | Discovered new exit (range 10) 3949 | -9/Materials | Repaired Lgt. Treads 4075 | -9/Materials | Central database locked down 4244 | -9/Materials | Discovered new exit (range 13) 4753 | -9/Materials | Entered Mines 4772 | -9/Mines | A Derelict revealed a hidden shortcut to a safe place 4907 | -9/Mines | Received a Rocket Launcher from a helpful Derelict 4965 | -9/Mines | Discovered new exit (range 5) 4976 | -9/Mines | Assisted by bots powering up and referring to "LRC-V3" 5041 | -9/Mines | Identified exit to Materials 5066 | -9/Mines | Lost 3 allies 5112 | -9/Mines | Assembled infested the area 5429 | -9/Mines | Destroyed 11 combat bots 5431 | -9/Mines | Core integrity fell below 50% 5624 | -9/Mines | Deemed a non-threat by the Exiles lab entrance 5624 | -9/Mines | Discovered new exit (range 5) 5631 | -9/Mines | Entered Exiles 5680 | -9/Exiles | Met 8R-AWN 5707 | -9/Exiles | Met EX-HEX 5753 | -9/Exiles | Met EX-BIN 5811 | -9/Exiles | Met EX-DEC 5973 | -9/Exiles | Discovered new exit (range 15) 5994 | -9/Exiles | Entered Mines 6039 | -8/Mines | Discovered exit to Materials (range 8) 6081 | -8/Mines | Lost 3 parts (1p1n1w) 6166 | -8/Mines | Destroyed 7 combat bots 6202 | -8/Mines | Found a Scrap Suit stashed away for nefarious purposes 6442 | -8/Mines | Discovered exit to Materials (range 4) 6526 | -8/Mines | Lost 3 parts (2n1w) 6883 | -8/Mines | Entered Materials 6883 | -8/Materials | Evolved 2 slots: Utility x2 6971 | -8/Materials | Garrison activated, responded to threat 7192 | -8/Materials | Build established: Gunner 7227 | -8/Materials | Discovered new exit (range 3) 7344 | -8/Materials | Identified exit to Storage 7583 | -8/Materials | Destroyed 7 combat bots 7732 | -8/Materials | Build established: Scavenger-Gunner 7903 | -8/Materials | Entered Storage 7916 | -8/Storage | Identified exit to Recycling 7918 | -8/Storage | Assisted by bots powering up and referring to "LRC-V3" 7984 | -8/Storage | Garrison activated, responded to threat 8188 | -8/Storage | Build established: Commander-Gunner 8475 | -8/Storage | Learned location of Armory (-3) 8703 | -8/Storage | First assault squad dispatched 8752 | -8/Storage | Lost 3 allies 8755 | -8/Storage | Discovered new exit (range 16) 8876 | -8/Storage | Used back door to open Recycling access 8883 | -8/Storage | Entered Recycling 8883 | -8/Recycling | Accompanied by 2 allies 9029 | -8/Recycling | Build established: Scavenger-Gunner 9428 | -8/Recycling | Scanned before Scraplab entrance 9451 | -8/Recycling | Entered Scraplab 9463 | -8/Recycling | Discovered new exit (range 2) 9465 | -8/Recycling | Entered Scraptown 9465 | -8/Scraptown | System corruption cleaned by C-Scrubber 9596 | -8/Scraptown | Build established: Scavenger-Mutant 10015 | -8/Scraptown | Build established: Mutant 10051 | -8/Scraptown | Discovered new exit (range 13) 10155 | -8/Scraptown | Visited Assassins FH 10184 | -8/Scraptown | Visited Bundlers 10289 | -8/Scraptown | Visited Red Mages 10533 | -8/Scraptown | Visited Shadow of the Wyrm 10591 | -8/Scraptown | Visited Cyclists 10615 | -8/Scraptown | Visited CR-KLE's Repair Center 10634 | -8/Scraptown | Visited Cave Peace 10694 | -8/Scraptown | Visited UFD Registry 10694 | -8/Scraptown | Registered with UFD as "Shockmod" 10730 | -8/Scraptown | Entered Cyclist Reading Room 10835 | -8/Scraptown | Visited Junk Cannon Lab 10852 | -8/Scraptown | Found Prototype Special Weapon 10899 | -8/Scraptown | Visited DA-N13 Charitable Foundation 10913 | -8/Scraptown | Found DCF Scrap (29 items) 10991 | -8/Scraptown | Visited Analyses Database 11039 | -8/Scraptown | Visited Science Testing Area 11124 | -8/Scraptown | Visited Infowarlord's Domain 11162 | -8/Scraptown | Visited Junk Repository 11229 | -8/Scraptown | Visited Sword Containment 11322 | -8/Scraptown | Visited Abandonware Association 11346 | -8/Scraptown | Learned abandonware demo "ERRANTS.EXE" 11346 | -8/Scraptown | Learned abandonware demo "KABOOM.EXE" 11406 | -8/Scraptown | Visited Junk Repository 11537 | -8/Scraptown | Visited Science Guys 11719 | -8/Scraptown | Build established: Gunner 12323 | -8/Scraptown | Build established: Derelict-Mutant 12515 | -8/Scraptown | Found Exp. Terrain Scanner 12601 | -8/Scraptown | Met Optimus 12601 | -8/Scraptown | Accepted into 0bPrime 12672 | -8/Scraptown | Discovered new exit (range 5) 12678 | -8/Scraptown | Entered Factory 12678 | -6/Factory | Evolved 4 slots: Power x1, Propulsion x1, Utility x2 12823 | -6/Factory | Loaded intel: 8 recycling unit locations 12884 | -6/Factory | Learned location of Protoforge (-3) 12963 | -6/Factory | Build established: Derelict-Skirmisher 13058 | -6/Factory | Discovered new exit (range 29) 13131 | -6/Factory | Identified exit to Factory 13406 | -6/Factory | Discovered exit to Factory (range 4) 13429 | -6/Factory | Entered another Factory area 13429 | -5/Factory | Evolved 2 slots: Utility x2 13739 | -5/Factory | Loaded intel: 8 recycling unit locations 13813 | -5/Factory | Build established: Skirmisher 13927 | -5/Factory | Discovered new exit (range 27) 14064 | -5/Factory | Identified exit to Upper Caves 14064 | -5/Factory | Identified exit to Extension 14184 | -5/Factory | Lost 4 parts (3n1w) 14346 | -5/Factory | Entered Extension 14352 | -5/Extension | Disrupted transfer network 14512 | -5/Extension | Identified Junk Cannon 14533 | -5/Extension | Rescued a captive Derelict 14533 | -5/Extension | Rescued a captive Derelict 15065 | -5/Extension | Rescued a captive Derelict 15066 | -5/Extension | Build established: Commander-Tank 15068 | -5/Extension | Rescued a captive Derelict 15166 | -5/Extension | Spotted B-75 Beast 15209 | -5/Extension | Lost 3 allies 15220 | -5/Extension | Rescued A7 15252 | -5/Extension | Spotted B-75 Beast 15260 | -5/Extension | Destroyed B-75 Beast 15272 | -5/Extension | Destroyed B-75 Beast 15291 | -5/Extension | Lost 4 allies 15334 | -5/Extension | Rescued a captive Derelict 15373 | -5/Extension | Rescued a captive Derelict 15377 | -5/Extension | Rescued a captive Derelict 15434 | -5/Extension | Loaded intel: 1 recycling unit location 15451 | -5/Extension | Rescued a captive Derelict 15452 | -5/Extension | Rescued a captive Derelict 15541 | -5/Extension | Build established: Scavenger-Tank 15608 | -5/Extension | Lost 4 allies 15806 | -5/Extension | Rescued a captive Derelict 15807 | -5/Extension | Rescued a captive Derelict 15861 | -5/Extension | Discovered new exit (range 10) 15863 | -5/Extension | Discovered new exit (range 6) 15901 | -5/Extension | Entered Cetus 15901 | -5/Cetus | Accompanied by 9 allies (A7) 15906 | -5/Cetus | Acquired a Cetus Manufacturing Module code from A7 15922 | -5/Cetus | Spotted Cetus Guard 15923 | -5/Cetus | Spotted Cetus Guard 15926 | -5/Cetus | Spotted Cetus Guard 15928 | -5/Cetus | Spotted Cetus Guard 15946 | -5/Cetus | Allies destroyed Cetus Guard 15956 | -5/Cetus | Allies destroyed Cetus Guard 15958 | -5/Cetus | Allies destroyed Cetus Guard 15959 | -5/Cetus | Allies destroyed Cetus Guard 15989 | -5/Cetus | Lost 5 allies 16160 | -5/Cetus | Started Cetus Manufacturing Module 16173 | -5/Cetus | Discovered new exit (range 19) 16185 | -5/Cetus | Manufactured an Enhanced Grunt 16210 | -5/Cetus | Manufactured an Enhanced Grunt 16235 | -5/Cetus | Manufactured an Enhanced Grunt 16254 | -5/Cetus | Spotted Cetus Guard 16254 | -5/Cetus | Spotted Cetus Guard 16254 | -5/Cetus | Spotted Cetus Guard 16257 | -5/Cetus | Spotted Cetus Guard 16260 | -5/Cetus | Manufactured an Enhanced Grunt 16262 | -5/Cetus | Extracted ID and sensor layout for unrecognized location from A7's data core 16273 | -5/Cetus | Allies destroyed Cetus Guard 16275 | -5/Cetus | Allies destroyed Cetus Guard 16285 | -5/Cetus | Manufactured an Enhanced Grunt 16291 | -5/Cetus | Allies destroyed Cetus Guard 16295 | -5/Cetus | Destroyed Cetus Guard 16302 | -5/Cetus | Found Prototype Device 16302 | -5/Cetus | Identified Exp. Thermal Shield 16303 | -5/Cetus | Discovered new exit (range 20) 16326 | -5/Cetus | Lost 7 allies 16361 | -5/Cetus | Met Revision 17 16578 | -5/Cetus | Entered Archives 16578 | -5/Archives | Accompanied by 2 allies 16641 | -5/Archives | Discovered new exit (range 17) 16665 | -5/Archives | Discovered new exit (range 13) 16688 | -5/Archives | Entered Hub_04(d) 16688 | -5/Hub_04(d) | Accompanied by 2 allies 16730 | -5/Hub_04(d) | Garrison activated, responded to threat 16988 | -5/Hub_04(d) | First assault squad dispatched 17031 | -5/Hub_04(d) | Garrison activated, responded to threat 17076 | -5/Hub_04(d) | Destroyed 12 combat bots 17135 | -5/Hub_04(d) | Discovered new exit (range 15) 17240 | -5/Hub_04(d) | Network Hub disabled 17252 | -5/Hub_04(d) | Entered Factory 17252 | -4/Factory | Accompanied by 1 ally 17252 | -4/Factory | Evolved 2 slots: Utility x2 17282 | -4/Factory | Found Quantum Capacitor 17358 | -4/Factory | Scraphulk reinforcements arrived? 17398 | -4/Factory | Garrison activated, responded to threat 17502 | -4/Factory | First assault squad dispatched 17803 | -4/Factory | Lost 5 parts (1n3u1w) 17817 | -4/Factory | Destroyed 9 combat bots 17901 | -4/Factory | Lost 3 parts (1p2w) 17964 | -4/Factory | Discovered new exit (range 12) 18031 | -4/Factory | Entered Upper Caves 18056 | -4/Upper Caves | Lost 5 parts (1p1n2u1w) 18187 | -4/Upper Caves | Attacked by a faux Warlord 18260 | -4/Upper Caves | Lost 4 parts (1n2u1w) 18501 | -4/Upper Caves | Build established: Scavenger-Mutant 18538 | -4/Upper Caves | Found Alien Artifact 18538 | -4/Upper Caves | Identified Dimensional Node Initializer 18538 | -4/Upper Caves | Initialized slip node 18709 | -4/Upper Caves | Discovered new exit (range 3) 18714 | -4/Upper Caves | Entered another Upper Caves area 18847 | -4/Upper Caves | Attracted the attention of an 0b10 checkpoint 19009 | -4/Upper Caves | Discovered new exit (range 14) 19034 | -4/Upper Caves | Entered Zhirov 19036 | -4/Zhirov | Discovered new exit (range 3) 19066 | -4/Zhirov | Met Zhirov 19096 | -4/Zhirov | Learned location of Quarantine (-3) 19096 | -4/Zhirov | Learned location of Testing (-2) 19096 | -4/Zhirov | Learned location of Command (-1) 19111 | -4/Zhirov | Zhirov requested help retrieving the SGEMP Prototype 19136 | -4/Zhirov | Found Alien Artifact 19136 | -4/Zhirov | Identified Integrated Reactor 19136 | -4/Zhirov | Installed Integrated Reactor, increased core energy generation (+10) 19157 | -4/Zhirov | Found Alien Artifact 19331 | -4/Zhirov | Entered Proximity Caves 19436 | -3/Proximity Caves | Spotter reported a threat 19567 | -3/Proximity Caves | Attracted the attention of an 0b10 checkpoint 19616 | -3/Proximity Caves | Build established: Scavenger-Gunner 19632 | -3/Proximity Caves | Discovered new exit (range 15) 19650 | -3/Proximity Caves | Entered Research 19650 | -3/Research | Evolved 2 slots: Propulsion x1, Utility x1 19850 | -3/Research | Revision forces began assault on 0b10 19973 | -3/Research | Met up with Revision 17++ 20184 | -3/Research | Discovered new exit (range 28) 20205 | -3/Research | Build established: Scavenger-Mutant 20235 | -3/Research | Identified exit to Research 20350 | -3/Research | Research terminal network offline 20559 | -3/Research | Spotted Striker 20562 | -3/Research | Spotted Striker 20564 | -3/Research | Found Prototype Device 20564 | -3/Research | Identified Exp. Thermal Shield 20604 | -3/Research | Lost 3 allies 20712 | -3/Research | Spotted B-86 Titan 20838 | -3/Research | Spotted B-86 Titan 20918 | -3/Research | Found Quantum Capacitor 21027 | -3/Research | Discovered new exit (range 11) 21151 | -3/Research | Entered another Research area 21151 | -2/Research | Evolved 2 slots: Propulsion x1, Utility x1 21433 | -2/Research | Build established: Scavenger-Tank 21570 | -2/Research | Discovered new exit (range 14) 22003 | -2/Research | Spotted B-90 Cyclops 22082 | -2/Research | Destroyed 7 combat bots 22107 | -2/Research | Lost 5 parts (1n3u1w) 22134 | -2/Research | Identified Transdimensional Reconstructor 22134 | -2/Research | Warped through subspace 22148 | -2/Research | Found Hvy. Reactive Plating 22265 | -2/Research | Found Hvy. Reflective Plating 22357 | -2/Research | System corruption reached 10% 22403 | -2/Research | Destroyed 8 combat bots 22460 | -2/Research | Loaded intel: 5 recycling unit locations 22512 | -2/Research | Discovered new exit (range 8) 22534 | -2/Research | Entered Testing 22576 | -2/Testing | Build established: Hacker-Mutant 22588 | -2/Testing | Found Prototype Ballistic Cannon 22588 | -2/Testing | Identified Perforator 22830 | -2/Testing | Found Prototype Launcher 23024 | -2/Testing | Spotted Striker 23025 | -2/Testing | Spotted Striker 23031 | -2/Testing | Destroyed Striker 23042 | -2/Testing | Spotted Alpha 7 23050 | -2/Testing | Destroyed Striker 23085 | -2/Testing | Core integrity fell below 50% 23115 | -2/Testing | Destroyed Alpha 7 23128 | -2/Testing | Lost 20 parts (2p7n8u3w) 23136 | -2/Testing | Destroyed 10 combat bots 23255 | -2/Testing | Stole the SGEMP Prototype 23305 | -2/Testing | Found Prototype Energy Cannon 23305 | -2/Testing | Identified Null Cannon 23347 | -2/Testing | Build established: Scavenger-Mutant 23366 | -2/Testing | Found Prototype Processor 23366 | -2/Testing | Identified Exp. Target Analyzer 23410 | -2/Testing | Found Prototype Leg 23410 | -2/Testing | Identified Myomer Exoskeleton 23443 | -2/Testing | Discovered new exit (range 11) 23458 | -2/Testing | Found Prototype Energy Cannon 23458 | -2/Testing | Identified Imp. Potential Cannon 23464 | -2/Testing | Found Imp. Potential Cannon 23643 | -2/Testing | Entered Access 23643 | -1/Access | Evolved 2 slots: Propulsion x1, Utility x1 23644 | -1/Access | Delivered the SGEMP Prototype to Zhirov 23644 | -1/Access | Zhirov transferred Access data 23645 | -1/Access | Loaded intel: 122 machine locations 23645 | -1/Access | Loaded intel: 106 trap records 23645 | -1/Access | Identified exit to Surface 23645 | -1/Access | Discovered exit to Surface (range 91) 23645 | -1/Access | Identified exit to Command 23645 | -1/Access | Discovered exit to Command (range 183) 23677 | -1/Access | Scraphulk reinforcements arrived? 23723 | -1/Access | Build established: Scavenger-Tank 23748 | -1/Access | Destroyed 12 combat bots 23765 | -1/Access | Zhirov warped through subspace 23893 | -1/Access | First assault squad dispatched 24104 | -1/Access | Build established: Scavenger-Skirmisher 28400 | -1/Access | System corruption reached 10% 28401 | *** | Escaped! Last Messages --------------- 28394_ P-80 Master resets P-80 Master, system corruption cleaned. 28395_ U-05 Engineer lays Concrete. 28396_ K-01 Serf cleans the Terminal. 28397_ U-05 Engineer lays Concrete. 28399_ Coolant Network destroyed. 28399_ U-05 Engineer lays Concrete. 28400_ Destroyed Gamma Rifle. 28400_ P-80 Master destroyed. 28400_ Terminal disabled. 28400_ Destroyed Wheel. 28400_ Destroyed Gamma Rifle. 28400_ P-80 Master destroyed. 28400_ Unknown Device melted. 28400_ P-80 Master destroyed. 28400_ Destroyed Wheel. 28400_ Destroyed Terrain Scanner. 28400_ Structural Scanner melted. 28400_ U-05 Engineer destroyed. 28400_ ALERT: Construction progress impeded, dispatching reinforcements to local area. Map ----- +----------------------------------------------------+ | """""" # # # """ ######### | | """" # # # """ ######### | | # ############+## " ######### | | # + ######### | | # # ######### | | # # ######### | | ######### + ########## | | ############+########## # ########## | | ## ###### # ! ########## | | ## ###### ####################### | | ## """"" ### ### ### | | " ## """"" ### ### ### | | "" ## """"" ### ### ### | | " ## """"" ### ### ### | | ## """"" ### BB BB ### ### | | ## ### BB BB ### ### | | ## ### ########+########### | | " ## """"" ###""""""""""####### | | "" ## """"" ###""""""""""####### "T | | " ## """"" ###""" """"""####### ######## "" | | ## """"" ### """"####### ######## | | ## """"" ### =% ####### #########+# | | ## ### %! " ####### # # | | +####### ### % " ####### # # | | ^^ ############## "" ####### # # | | ############## "@ ####### #= =! # | | ############## ####### # # | | ^ ############## ####### # ! # | | ^ ############## |% ####### # + | | ############# |**u ####### # # | | #############" %% p""""""###### # # | | #############; [== ####### # # | | ############ ; % |k ####### + # | | #### #############; ! = ####### # !# | | #### ##############T ####### # # | | #### ##############""u ####### # # | | #### ##############"" ####### ########### | | # ##############""k ####### ########### | | + C | | # | | " #+##+###########################+############## | | # ##################### ######## | | # # ########### ######## | | # " # ########### ######## | | # """ # ########### ######## | | # """ # ########### ######## | | #### " #####+############### ######## | | #### + #########! ######## | | #### ########### ######### ######## | | #### ########### ###############+########## | +----------------------------------------------------+ Best States ------------- Heat Dissipation 229 Coolant Potential 50 Energy Generation 67 Energy Capacity 1075 Matter Stores 300 Matter Capacity 300 Sight Range 20 Robot Scan Range 16 Terrain Scan Range 30 Terrain Scan Density 210 Power Amplification 30 Base Temperature (-) 150 Armor Coverage 1200 Resistance: KI 40 Resistance: TH 30 Utility Shielding 90 Weapon Shielding 33 Weapon Cycling 20 Evasion (%) 70 Targeting Accuracy 8 Target Analysis 5 Recoil Reduction 7 Energy Filtering 30 Particle Charging 25 Offensive Hacking 14 Defensive Hacking 14 Item Schematics ----------------- Hcp. Storage Unit | -8/Recycling | Hacked Assault Drone Bay | -4/Zhirov | Free Exp. Heat Sink | -4/Zhirov | Free Exp. Optical Array | -4/Zhirov | Free Imp. Arc Thrower | -4/Zhirov | Free Robot Schematics ------------------ None Fabricated ------------ Nothing Repaired ---------- Lgt. Treads | 67% | -9/Materials Alien Tech Used ----------------- Dimensional Node Initializer Integrated Reactor Transdimensional Reconstructor Achievements -------------- None Challenges ------------ None Game ------ Seed GuidedAntimissileRefractor Manual? 0 Play Time 03:25:15 Cumulative 344.6 hours Start 2025.06.20 @ 13:25:39 End 2025.06.20 @ 21:44:22 Sessions 3 Manual Loads 0 Difficulty Rogue Special Mode None Game No. 239 Rogue 239 Adventurer 0 Explorer 0 Win Type 0 Total 27 Types 21/0/4/2/0/0/0/0/0/0 Lore% 89 Gallery% 77 Achievement% 66 Wizard Run 0 Options --------- Layout 0 ASCII 1 Keyboard 1 Movement Arrows Keybinds 0 Fullscreen 2 Font 18/Terminus Map View 76x50 Zoom Use 0% Tactical HUD 1 Map Filters NONE Filters NONE Steam 1 RUN: 73c776cb-3d00-4c34-bfe8-76ba74a15b17